[Event "EIBCC 2024"]
[Site "Skopje"]
[Date "2024.12.09"]
[Round "3.11"]
[White "Kadric, Denis"]
[Black "Mohr, Georg"]
[Result "0-1"]
[Annotator "TA"]
[ECO "B23"]
[WhiteElo "2544"]
[BlackElo "2385"]
[PlyCount "100"]
[EventDate "2024.12.07"]
[EventCountry "MKD"]
[SourceTitle "playchess.com"]
[Source "ChessBase"]
[SourceQuality "1"]
[TimeControl "180+2"]

{[%evp 16,100,38,48,70,66,80,64,74,88,96,86,161,157,150,150,149,146,203,203,212,207,275,275,388,387,648,446,516,397,365,156,148,148,139,11,23,-171,-172,-187,-184,-381,-372,-372,-369,-369,-283,-397,-391,-403,-568,-570,-549,-539,-540,-576,-468,-6721,-569,-1061,-1059,-935,-873,-1496,-1361,-2572,-2049,-1846,-1010,-1893,-1702,-2543,-1535,-1856,-1547,-1980,-1886,-1642,-1481,-2622,-1900,-29981,-29982,-29988,-29989,-29989,-29990]} 1. e4 {[%emt 0:00:01]} c5 {[%emt 0:00:01]} 2. Nc3 {[%emt 0:00:01]} e6 {[%emt 0:00:02]} 3. Nge2 {[%emt 0:00:03]} Nc6 {[%emt 0:00:06]} 4. g3 {[%emt 0:00:01]} d5 {[%emt 0:00:04]} 5. exd5 {[%emt 0:00:01]} exd5 {[%emt 0:00:00]} 6. d4 {[%emt 0:00:00] B23: Closed Sicilian: Lines without g3.} Nf6 {[%emt 0:00:10]} 7. Be3 {[%emt 0:00:01]} cxd4 {[%emt 0:00:02]} 8. Bxd4 {[%emt 0:00:01]} Nxd4 {[%emt 0:00:08]} 9. Qxd4 {[%emt 0:00:04]} Qb6 $146 {[%emt 0:00:26]} ({Predecessor:} 9... Qa5 10. O-O-O Bc5 11. Qe5+ Be6 12. Bh3 O-O 13. Bxe6 fxe6 14. Nd4 Bxd4 15. Qxe6+ Rf7 16. Rxd4 {1-0 Indjic,A (2630)-Moiseenko,A (2582) Bundesliga 2223 2022 (3.3)}) 10. Qxb6 {[%emt 0:00:09]} (10. Nxd5 $2 Qxd4 11. Nxd4 Nxd5 $19) 10... axb6 {[%emt 0:00:01]} 11. Bg2 {[%emt 0:00:01]} Be6 {[%emt 0:00:00]} 12. O-O-O {[%emt 0:00:09]} O-O-O {[%emt 0:00:01]} 13. Nf4 {[%emt 0:00:15]} d4 {[%emt 0:00:01]} (13... Bg4 $16 {was called for.}) 14. Nxe6 $18 {[%emt 0:00:01]} fxe6 {[%emt 0:00:01] [#]} 15. Nb5 $1 {[%emt 0:00:14]} Bc5 {[%emt 0:00:12]} 16. Rhe1 {[%emt 0:00:02]} Ng4 {[%emt 0:00:43]} (16... Rhe8 $16 17. Bh3 d3 18. cxd3 (18. Rxd3 Bxf2 19. Rxd8+ Rxd8 $18) (18. Rxe6 Kb8 $18) 18... Bxf2) 17. Rxe6 $18 {[%emt 0:00:49]} Nxf2 {[%emt 0:00:02]} 18. Rd2 {[%emt 0:00:00]} Rhf8 {[%emt 0:00:16] [#]} 19. a3 $1 {[%emt 0:00:12]} d3 {[%emt 0:00:39]} (19... Rf7 {keeps fighting.} 20. b4 Be7 21. Rxe7 (21. Rxb6 Bg5 $16) (21. Rxd4 Rxd4 22. Nxd4 Ng4 $18) 21... Rxe7) 20. b4 $18 {[%emt 0:00:02]} Bd4 $2 {[%emt 0:00:08]} (20... Kd7) 21. cxd3 {[%emt 0:00:19]} Bf6 {[%emt 0:00:04]} 22. Rc2+ {[%emt 0:00:27]} Kb8 {[%emt 0:00:01]} 23. Rxb6 {[%emt 0:00:01]} (23. Rxf2 $18 {is more deadly.} Bg5+ 24. Rf4 (24. Rd2 $2 Rxd3 25. Rxb6 Rf7 $19)) 23... Nxd3+ $16 {[%emt 0:00:06]} 24. Kb1 {[%emt 0:00:00]} Rd7 {[%emt 0:00:01]} 25. Nd6 {[%emt 0:00:10]} (25. Rd2 $16) 25... Ne1 $11 {[%emt 0:00:06]} 26. Re2 $2 {[%emt 0:00:23]} (26. Rxb7+ Rxb7 27. Nxb7 Nxc2 28. Kxc2 Be5 $19) (26. Bh3 $11 {and White stays safe.} Nxc2 27. Bxd7 Nxa3+ 28. Ka2) 26... Nxg2 $19 {[%emt 0:00:02]} 27. Rxg2 {[%emt 0:00:01]} Bd8 {[%emt 0:00:04]} 28. Nc4 $2 {[%emt 0:00:05]} (28. Rxb7+ Rxb7 29. Nxb7 Kxb7 30. Rd2) 28... Bxb6 $19 {[%emt 0:00:01]} 29. Nxb6 {[%emt 0:00:01]} Rd4 {[%emt 0:00:02]} 30. Kb2 {[%emt 0:00:07]} Rfd8 {[%emt 0:00:02]} 31. Kb3 {[%emt 0:00:12]} (31. Kc2 $142) 31... Rd3+ $19 {[%emt 0:00:03]} 32. Ka4 {[%emt 0:00:01]} Rd2 {[%emt 0:00:04]} 33. Rg1 {[%emt 0:00:03]} Rd1 {[%emt 0:00:01]} 34. Rxd1 {[%emt 0:00:03]} Rxd1 {[%emt 0:00:01]} 35. Nc4 {[%emt 0:00:01]} Kc7 {[%emt 0:00:03]} 36. Kb5 {[%emt 0:00:01]} (36. Ne5 $142) 36... Rh1 {[%emt 0:00:02]} (36... Rd5+ $142 37. Ka4 b5+ 38. Kb3 Rd3+ (38... bxc4+ $2 39. Kxc4 Rd2 40. h4 $19) 39. Kc2 bxc4) 37. h4 {[%emt 0:00:01]} Rg1 {[%emt 0:00:01]} 38. Ne3 {[%emt 0:00:03]} Rxg3 {[%emt 0:00:02]} 39. Nd5+ {[%emt 0:00:01]} Kb8 {[%emt 0:00:01]} 40. a4 {[%emt 0:00:02]} Rh3 {[%emt 0:00:01]} 41. Kc5 {[%emt 0:00:05]} Rxh4 {[%emt 0:00:02]} 42. a5 {[%emt 0:00:00]} Rh5 {[%emt 0:00:01]} 43. b5 {[%emt 0:00:01]} g5 {[%emt 0:00:03]} 44. Nf6 {[%emt 0:00:03]} Rh6 {[%emt 0:00:05]} 45. Nd7+ {[%emt 0:00:01]} Kc7 {[%emt 0:00:01]} 46. Ne5 {[%emt 0:00:01]} Rh5 {[%emt 0:00:04]} 47. b6+ {[%emt 0:00:01]} Kc8 {[%emt 0:00:01]} 48. Nf7 {[%emt 0:00:11]} g4+ {[%emt 0:00:02]} 49. Kb4 {[%emt 0:00:00]} g3 {[%emt 0:00:02]} 50. Nd6+ {[%emt 0:00:01]} Kb8 {[%emt 0:00:01]} 0-1

[Event "EIBCC 2024"]
[Site "Skopje"]
[Date "2024.12.09"]
[Round "3.12"]
[White "Hamitevici, Vladimir"]
[Black "Alonso Rosell, Alvar"]
[Result "0-1"]
[Annotator "TA"]
[ECO "A36"]
[WhiteElo "2423"]
[BlackElo "2532"]
[PlyCount "45"]
[EventDate "2024.12.07"]
[EventCountry "MKD"]
[SourceTitle "playchess.com"]
[Source "ChessBase"]
[SourceQuality "1"]
[TimeControl "180+2"]

{[%evp 9,45,0,22,13,12,18,16,18,18,21,17,6,29,10,20,26,36,-10,0,0,28,0,0,0,37,14,91,40,225,241,233,217,218,19,25,-64,-84,-82]} 1. c4 {[%emt 0:00:02]} c5 {[%emt 0:00:03]} 2. g3 {[%emt 0:00:04]} Nf6 {[%emt 0:00:01]} 3. Bg2 {[%emt 0:00:02]} Nc6 {[%emt 0:00:02]} 4. Nc3 {[%emt 0:00:07]} g6 {[%emt 0:00:03]} 5. d3 {[%emt 0:00:08]} d6 {[%emt 0:00:07]} 6. b3 {[%emt 0:00:05]} Bg7 {[%emt 0:00:06][%cal Of6e4]} 7. Bb2 {[%emt 0:00:01]} Bd7 {[%emt 0:00:06]} 8. e3 {[%emt 0:00:29] The position is equal.} Rb8 {[%emt 0:00:19]} 9. Nge2 {[%emt 0:00:07]} h5 {[%emt 0:00:18]} 10. h3 {[%emt 0:00:21]} a6 {[%emt 0:00:02]} 11. Qd2 {[%emt 0:00:01]} b5 {[%emt 0:00:21]} 12. Nd5 {[%emt 0:00:04]} e6 {[%emt 0:00:11]} 13. Ndc3 {[%emt 0:00:20]} (13. Nxf6+ $14 {deserves consideration.} Bxf6 14. Bxf6 Qxf6 15. O-O) 13... Qe7 {[%emt 0:00:18]} 14. O-O {[%emt 0:00:21]} e5 {[%emt 0:00:18]} 15. f4 {[%emt 0:00:15]} O-O {[%emt 0:00:20]} 16. Rae1 {[%emt 0:00:08]} Qd8 {[%emt 0:00:16]} 17. Kh2 {[%emt 0:00:05]} Nh7 {[%emt 0:00:20]} (17... Ne7 $11 {remains equal.}) 18. Ne4 {[%emt 0:00:43]} ({White should play} 18. fxe5 $16 Bxe5 19. Rd1) 18... f5 $2 {[%emt 0:00:02]} (18... Bf5 $14) 19. Nxd6 $18 {[%emt 0:00:05]} Qe7 {[%emt 0:00:01]} 20. Bd5+ {[%emt 0:00:07]} Kh8 {[%emt 0:00:01] [#]} 21. Nf7+ {[%emt 0:00:06]} Rxf7 $11 {[%emt 0:00:01]} 22. Bxf7 {[%emt 0:00:01]} ({Better is} 22. fxe5 $11 Nf8 23. Nf4) 22... Qxf7 $15 {[%emt 0:00:01]} 23. fxe5 {[%emt 0:00:06] Weighted Error Value: White=0.36/Black=0.32.  Loses game:     	---       	Black=1      Missed win:     	White=1     	---        Mistake:       	White=3     	Black=1      Inaccurate:     	White=1     	Black=2      OK:         	White=5     	Black=4      Best:        	---       	Black=1} 0-1

[Event "EIBCC 2024"]
[Site "Skopje"]
[Date "2024.12.09"]
[Round "3.14"]
[White "Nevednichy, Vladislav"]
[Black "Muradli, Mahammad"]
[Result "0-1"]
[Annotator "TA"]
[ECO "B52"]
[WhiteElo "2451"]
[BlackElo "2588"]
[PlyCount "94"]
[EventDate "2024.12.07"]
[EventCountry "MKD"]
[SourceTitle "playchess.com"]
[Source "ChessBase"]
[SourceQuality "1"]
[TimeControl "180+2"]

{[%evp 9,94,0,24,27,33,12,20,0,0,0,0,0,12,0,-2,-18,0,0,29,-8,14,20,16,18,27,17,14,23,21,23,50,38,61,63,88,51,95,52,86,36,41,43,59,42,36,8,16,18,13,-55,-72,-213,-208,-210,-49,-334,-334,-1445,-1435,-1376,-1430,-1405,-1333,-1360,-1330,-1163,-1120,-1316,-1023,-2169,-2211,-1758,-712,-29976,-29977,-7171,-6529,-2313,-4666,-29997,-29986,-29994,-29987,-29990,-29990,-29990,-29991]} 1. e4 {[%emt 0:00:02]} c5 {[%emt 0:00:57]} 2. Nf3 {[%emt 0:00:02]} d6 {[%emt 0:00:01]} 3. Bb5+ {[%emt 0:00:02]} Bd7 {[%emt 0:00:01]} 4. c4 {[%emt 0:00:02]} Nf6 {[%emt 0:00:01]} 5. Nc3 {[%emt 0:00:01]} g6 {[%emt 0:00:01]} 6. d4 {[%emt 0:00:04]} cxd4 {[%emt 0:00:01]} 7. Nxd4 {[%emt 0:00:01]} Nc6 {[%emt 0:00:04]} 8. O-O {[%emt 0:00:18][%cal Oc4c5] The position is equal.} Bg7 {[%emt 0:00:01][%cal Of6e4]} 9. Bxc6 {[%emt 0:00:10]} bxc6 {[%emt 0:00:03]} 10. h3 {[%emt 0:00:08]} O-O {[%emt 0:00:22]} 11. Be3 {[%emt 0:00:10]} c5 {[%emt 0:00:07]} 12. Nde2 {[%emt 0:00:12]} Bc6 {[%emt 0:00:05]} 13. f3 {[%emt 0:00:09]} Nd7 {[%emt 0:00:01][%cal Bf6d7,Bd7e5,Be5c6,Bc6b4][%mdl 32]} 14. Qd2 {[%emt 0:00:06]} Re8 {[%emt 0:00:01]} 15. b3 {[%emt 0:00:07]} Qb6 {[%emt 0:00:21]} 16. Rab1 {[%emt 0:00:06]} Qb7 {[%emt 0:00:12]} 17. Bh6 {[%emt 0:00:08]} Bh8 {[%emt 0:00:05]} 18. h4 {[%emt 0:00:05][%cal Bh3h4,Bh4h5][%mdl 32]} Ne5 {[%emt 0:00:10] [#]} 19. h5 $1 {[%emt 0:00:08]} Bd7 {[%emt 0:00:02]} (19... Qd7 20. hxg6) 20. Nd5 {[%emt 0:00:07]} Nc6 {[%emt 0:00:09]} 21. Bg5 {[%emt 0:00:02]} Be6 {[%emt 0:00:13]} 22. hxg6 {[%emt 0:00:02]} hxg6 {[%emt 0:00:01]} 23. Be3 {[%emt 0:00:10]} (23. Kf2 {is interesting.} Bxd5 24. Rh1 Bg7 25. exd5 Nd4 26. Qf4) 23... a5 {[%emt 0:00:16]} 24. a4 {[%emt 0:00:06]} (24. Kf2 $16) 24... Bxd5 $14 {[%emt 0:00:08]} 25. exd5 {[%emt 0:00:02]} Nb4 {[%emt 0:00:05]} 26. Nc3 {[%emt 0:00:13]} e6 {[%emt 0:00:16]} 27. Ne4 {[%emt 0:00:08]} Qc7 {[%emt 0:00:08]} 28. dxe6 {[%emt 0:00:06]} Rxe6 {[%emt 0:00:01]} 29. Bf4 {[%emt 0:00:03]} (29. Bf2 $11) 29... Bd4+ $15 {[%emt 0:00:00]} 30. Kh2 {[%emt 0:00:03]} (30. Kh1 $17 {was worth a try.}) 30... Rae8 $19 {[%emt 0:00:01] White must now prevent ...Qe7.} 31. g4 {[%emt 0:00:14]} f6 $2 {[%emt 0:00:00]} (31... Qe7 $19 32. Kh1 d5) 32. Kg3 $2 {[%emt 0:00:05][%mdl 8192]} (32. Rbe1 $15 Qd7 33. Be3 (33. Nxd6 $2 Rxe1 34. Rxe1 Rxe1 $19)) 32... g5 {[%emt 0:00:02]} 33. Be3 {[%emt 0:00:06]} (33. Bxg5 fxg5 34. Qxg5+ Qg7 35. Qxg7+ Kxg7 36. g5) 33... d5+ {[%emt 0:00:01]} 34. Kg2 {[%emt 0:00:05]} dxe4 {[%emt 0:00:06]} 35. f4 {[%emt 0:00:06]} Bxe3 {[%emt 0:00:01]} 36. Qxe3 {[%emt 0:00:01]} gxf4 {[%emt 0:00:02]} 37. Rxf4 {[%emt 0:00:01]} Nc2 {[%emt 0:00:01]} 38. Qg3 {[%emt 0:00:05]} Nd4 {[%emt 0:00:04]} 39. Re1 {[%emt 0:00:06]} e3 {[%emt 0:00:01][%cal Oe3e2] [#] Threatens to win with ...e2!} 40. g5 {[%emt 0:00:02]} fxg5 {[%emt 0:00:04]} (40... Nxb3 41. gxf6+ Kf8 42. Rh1 (42. f7 Qb7+ 43. Kg1 Qxf7 $16) 42... Qb7+ 43. Kg1 Re5 44. Rh8+ Kf7 45. Qg7+ Ke6 46. Rxe8+ (46. Qxb7 Rg5+ 47. Kf1 e2+ 48. Kxe2 Re5+ 49. Kf2 Kd6 50. Rxe8 Rxe8) 46... Kd6 47. f7 (47. Qxb7 Rxe8 48. f7 Rd8 49. Re4 Nd4 50. Qd5+ Kc7 51. Re7+ Rd7 52. Rxd7+ Kc8 53. f8=Q#)) 41. Qxg5+ {[%emt 0:00:04]} Qg7 {[%emt 0:00:01]} 42. Rg4 {[%emt 0:00:01]} Qxg5 {[%emt 0:00:02]} 43. Rxg5+ {[%emt 0:00:01]} Kf7 {[%emt 0:00:01] ( -> ...Rf6)} 44. Rxc5 {[%emt 0:00:01]} e2 {[%emt 0:00:03] Black mates.} 45. Rxa5 {[%emt 0:00:01]} Nc2 {[%emt 0:00:00]} 46. Rc1 {[%emt 0:00:01]} e1=Q {[%emt 0:00:02]} 47. Rxe1 {[%emt 0:00:01]} Nxe1+ {[%emt 0:00:02] Weighted Error Value: White=0.83/Black=0.42.  Loses game:     	White=1     	---        Missed win:     	---       	Black=1      Mistake:       	White=4     	---        Inaccurate:     	White=4     	Black=4      OK:         	White=10    	Black=12     Best:        	---       	Black=1} 0-1

[Event "EIBCC 2024"]
[Site "Skopje"]
[Date "2024.12.09"]
[Round "3.15"]
[White "Dardha, Daniel"]
[Black "Larkin, Vladyslav"]
[Result "0-1"]
[Annotator "TA"]
[ECO "A53"]
[WhiteElo "2639"]
[BlackElo "2449"]
[PlyCount "222"]
[EventDate "2024.12.07"]
[EventCountry "MKD"]
[SourceTitle "playchess.com"]
[Source "ChessBase"]
[SourceQuality "1"]
[TimeControl "180+2"]

{[%evp 117,222,0,0,0,0,0,0,0,0,0,0,0,0,0,0,-14,-9,-18,0,-12,0,0,0,0,0,0,0,0,0,0,0,0,0,0,0,0,0,0,0,0,0,0,0,0,0,0,0,0,0,0,0,0,0,-8,-12,-509,-627,-536,-443,-1610,-1329,-1448,-1189,-889,-723,-29955,-29954,-29968,-29970,-29947,-29952,-29950,-29950,-29943,-29950,-29944,-29952,-29962,-29963,-29974,-29963,-29959,-29964,-29963,-29966,-29964,-29962,-29964,-29964,-29968,-29971,-29972,-29973,-29969,-29974,-29973,-29975,-29975,-29976,-29976,-29977,-29977,-29978,-29975,-29979,-29993,-29994]} 1. d4 {[%emt 0:00:02]} d6 {[%emt 0:00:00]} 2. Nf3 {[%emt 0:00:03]} Bg4 {[%emt 0:00:01]} 3. e3 {[%emt 0:00:02]} c6 {[%emt 0:00:02]} 4. Be2 {[%emt 0:00:02]} Nd7 {[%emt 0:00:01]} 5. h3 {[%emt 0:00:02]} Bh5 {[%emt 0:00:02]} 6. c4 {[%emt 0:00:03]} Ngf6 {[%emt 0:00:01]} 7. Nc3 {[%emt 0:00:01]} e5 {[%emt 0:00:03]} 8. g4 {[%emt 0:00:10] A53: Old Indian Defence without Nf3.} Bg6 {[%emt 0:00:02]} 9. Nh4 {[%emt 0:00:04]} Be4 $146 {[%emt 0:00:38]} ({Predecessor:} 9... Ne4 10. Nxg6 Nxc3 11. bxc3 hxg6 12. Bf3 Qc7 13. Qb3 O-O-O 14. Ba3 f5 15. Rb1 e4 {½-½ Ogloblin,N (2346)-Ivanisevic,I (2604) Titled Tuesday intern op 28th Apr blitz 2020 (5)}) 10. Nxe4 {[%emt 0:00:25]} Nxe4 {[%emt 0:00:01]} 11. Nf3 {[%emt 0:00:02]} Be7 {[%emt 0:00:09]} 12. Qc2 {[%emt 0:00:02]} Nef6 {[%emt 0:00:14]} 13. g5 {[%emt 0:00:13]} Nh5 {[%emt 0:00:24]} 14. h4 {[%emt 0:00:02]} g6 {[%emt 0:00:02]} 15. Bd2 {[%emt 0:00:03]} Qc7 {[%emt 0:00:03]} 16. O-O-O {[%emt 0:00:15]} O-O-O {[%emt 0:00:02]} 17. Kb1 {[%emt 0:00:15]} Kb8 {[%emt 0:00:02]} 18. Bc3 {[%emt 0:00:03]} Rhe8 {[%emt 0:00:13]} 19. c5 {[%emt 0:00:07]} e4 {[%emt 0:00:30]} 20. cxd6 {[%emt 0:00:18]} Bxd6 {[%emt 0:00:01]} 21. Nd2 {[%emt 0:00:02]} f5 {[%emt 0:00:00]} 22. Nc4 {[%emt 0:00:06]} Nb6 {[%emt 0:00:02]} 23. Ba5 {[%emt 0:00:03]} Ng7 {[%emt 0:00:29]} 24. Qb3 {[%emt 0:00:05]} Qe7 {[%emt 0:00:05]} 25. Bxb6 {[%emt 0:00:24]} axb6 {[%emt 0:00:02]} 26. Nxb6 {[%emt 0:00:02]} Bc7 {[%emt 0:00:05]} 27. Na4 {[%emt 0:00:01]} Bd6 {[%emt 0:00:08]} 28. Rc1 {[%emt 0:00:02]} Qc7 {[%emt 0:00:17]} 29. d5 {[%emt 0:00:06]} c5 {[%emt 0:00:02]} 30. Bb5 {[%emt 0:00:23]} Re7 {[%emt 0:00:00]} 31. Bc6 {[%emt 0:00:05]} Qa5 {[%emt 0:00:01]} 32. Bb5 {[%emt 0:00:09]} Rc7 {[%emt 0:00:11]} 33. Rc4 {[%emt 0:00:02]} Qd2 {[%emt 0:00:06]} 34. Rc2 {[%emt 0:00:12]} Qa5 {[%emt 0:00:01]} 35. Nc3 {[%emt 0:00:03]} Be5 {[%emt 0:00:00]} 36. Be2 {[%emt 0:00:05]} Bxc3 {[%emt 0:00:01]} 37. Rxc3 {[%emt 0:00:01]} Ne8 {[%emt 0:00:01]} 38. h5 {[%emt 0:00:02]} Nd6 {[%emt 0:00:03]} 39. hxg6 {[%emt 0:00:02]} hxg6 {[%emt 0:00:15]} 40. Rh6 {[%emt 0:00:01]} Rg8 {[%emt 0:00:00]} 41. a3 {[%emt 0:00:02]} Rcc8 {[%emt 0:00:00]} 42. Rh7 {[%emt 0:00:02]} Rc7 {[%emt 0:00:00]} 43. Rh1 {[%emt 0:00:04]} Rcc8 {[%emt 0:00:00]} 44. Ka2 {[%emt 0:00:04]} Rc7 {[%emt 0:00:00]} 45. Rc2 {[%emt 0:00:01]} Rgc8 {[%emt 0:00:00]} 46. Rh6 {[%emt 0:00:01]} c4 {[%emt 0:00:00]} 47. Qc3 {[%emt 0:00:01]} Qxd5 {[%emt 0:00:00]} 48. Rd2 {[%emt 0:00:04]} Qe6 {[%emt 0:00:01]} 49. Ka1 {[%emt 0:00:06]} Nb5 {[%emt 0:00:01]} 50. Qf6 {[%emt 0:00:01]} Qxf6 {[%emt 0:00:14]} 51. gxf6 {[%emt 0:00:01]} c3 {[%emt 0:00:00]} 52. bxc3 {[%emt 0:00:04]} Nxc3 {[%emt 0:00:01]} 53. Rxg6 {[%emt 0:00:02]} Rc6 {[%emt 0:00:04]} 54. Rb2 {[%emt 0:00:04]} Na4 {[%emt 0:00:01]} 55. Rd2 {[%emt 0:00:01]} Rb6 {[%emt 0:00:02]} 56. Rg1 {[%emt 0:00:02]} Rxf6 {[%emt 0:00:01]} 57. Rb1 {[%emt 0:00:02]} Nc3 {[%emt 0:00:01]} 58. Rb4 {[%emt 0:00:01]} Rfc6 {[%emt 0:00:01]} 59. Kb2 {[%emt 0:00:02]} Rc5 {[%emt 0:00:05]} 60. Bh5 {[%emt 0:00:01]} R8c7 {[%emt 0:00:02]} (60... Nd5 $5 61. Rb3 $8 R8c7 $11) 61. Be8 {[%emt 0:00:01]} Nd5 {[%emt 0:00:01]} 62. Rbd4 {[%emt 0:00:02]} Nb6 {[%emt 0:00:01]} 63. Ka2 {[%emt 0:00:02]} Nc4 {[%emt 0:00:01]} 64. Rc2 {[%emt 0:00:01]} Ne5 {[%emt 0:00:01]} 65. Rxc5 {[%emt 0:00:02]} Rxc5 {[%emt 0:00:00]} 66. Ba4 {[%emt 0:00:03]} Nd3 {[%emt 0:00:02]} 67. f4 {[%emt 0:00:02]} Ka7 {[%emt 0:00:02]} 68. Bb3 {[%emt 0:00:04]} Nc1+ {[%emt 0:00:03]} 69. Kb2 {[%emt 0:00:00]} Nxb3 {[%emt 0:00:00]} 70. Kxb3 {[%emt 0:00:01]} Ka6 {[%emt 0:00:04]} 71. Kb4 {[%emt 0:00:02]} Rb5+ {[%emt 0:00:01]} 72. Kc4 {[%emt 0:00:01]} Ra5 {[%emt 0:00:03]} 73. Rd6+ {[%emt 0:00:06]} b6 {[%emt 0:00:01]} 74. Kb3 {[%emt 0:00:03]} Rb5+ {[%emt 0:00:01]} 75. Kc2 {[%emt 0:00:01]} Rc5+ {[%emt 0:00:00]} 76. Kd2 {[%emt 0:00:01]} Rb5 {[%emt 0:00:01]} 77. Rf6 {[%emt 0:00:02]} Ka5 {[%emt 0:00:01]} 78. Kc3 {[%emt 0:00:05]} Ka4 {[%emt 0:00:01]} 79. Rf8 {[%emt 0:00:01]} Rc5+ {[%emt 0:00:00]} 80. Kb2 {[%emt 0:00:01]} Rd5 {[%emt 0:00:02]} 81. Ra8+ {[%emt 0:00:02]} Kb5 {[%emt 0:00:24]} 82. Kc2 {[%emt 0:00:03]} Rd3 {[%emt 0:00:00]} 83. Rf8 {[%emt 0:00:01]} Rxe3 {[%emt 0:00:00]} 84. Rxf5+ {[%emt 0:00:01]} Kc4 {[%emt 0:00:00]} 85. Re5 {[%emt 0:00:01]} Kd4 {[%emt 0:00:00]} 86. Re8 $2 {[%emt 0:00:03][%mdl 8192]} (86. Re6 $11 {and White is okay.}) 86... Rxa3 $19 {[%emt 0:00:00]} 87. f5 {[%emt 0:00:03]} Rf3 {[%emt 0:00:00]} 88. Re6 {[%emt 0:00:04]} (88. Rd8+ $142 Ke5 89. Rb8 Kxf5 (89... Rxf5 90. Rxb6 Kf4 91. Kd2 $11) 90. Kd1) 88... b5 {[%emt 0:00:00]} 89. f6 {[%emt 0:00:01]} b4 {[%emt 0:00:00]} 90. Rb6 {[%emt 0:00:01]} Rf2+ {[%emt 0:00:00]} 91. Kb3 {[%emt 0:00:01]} e3 {[%emt 0:00:00]} 92. Re6 {[%emt 0:00:05]} Kd3 {[%emt 0:00:00]} 93. Kxb4 {[%emt 0:00:01]} e2 {[%emt 0:00:00]} 94. Kc5 {[%emt 0:00:01]} Rxf6 {[%emt 0:00:00]} 95. Rxf6 {[%emt 0:00:01]} e1=Q {[%emt 0:00:28]} ({Stronger than} 95... e1=R 96. Rh6 $11) 96. Rd6+ {[%emt 0:00:01]} Kc3 {[%emt 0:00:00]} 97. Kc6 {[%emt 0:00:01]} Qe4+ {[%emt 0:00:00]} 98. Kb5 {[%emt 0:00:02]} Qe5+ {[%emt 0:00:00]} 99. Kc6 {[%emt 0:00:00]} Kc4 {[%emt 0:00:00]} 100. Kd7 {[%emt 0:00:03]} Kc5 {[%emt 0:00:00]} 101. Re6 {[%emt 0:00:01]} Qf5 {[%emt 0:00:00]} 102. Ke7 {[%emt 0:00:03]} Qh7+ {[%emt 0:00:00]} 103. Kf6 {[%emt 0:00:02]} Kd5 {[%emt 0:00:00]} 104. Re5+ {[%emt 0:00:00]} Kd6 {[%emt 0:00:00]} 105. Re6+ {[%emt 0:00:01]} Kd7 {[%emt 0:00:00]} 106. Re5 {[%emt 0:00:01]} Qh6+ {[%emt 0:00:00]} 107. Kf5 {[%emt 0:00:01]} Kd6 {[%emt 0:00:00]} 108. Re4 {[%emt 0:00:02]} Qh5+ {[%emt 0:00:00]} 109. Kf4 {[%emt 0:00:04]} Kd5 {[%emt 0:00:00]} 110. Re3 {[%emt 0:00:00]} Qh4+ {[%emt 0:00:00]} 111. Kf5 {[%emt 0:00:02]} Qf2+ {[%emt 0:00:00]} 0-1